[Event "DVM U20 2019"]
[Site "Braunschweig"]
[Date "2019.12.27"]
[Round "2"]
[White "Waffenschmidt, Lars"]
[Black "Rauch, Sören"]
[Result "1/2-1/2"]
[ECO "C06"]
[WhiteElo "1885"]
[BlackElo "1901"]
[Annotator "NA"]
[PlyCount "80"]
[EventDate "2019.12.27"]
[EventType "team-tourn"]
[EventRounds "7"]
[EventCountry "GER"]
[SourceTitle "playchess.com"]
[Source "ChessBase"]
[SourceQuality "1"]
[WhiteTeam "SK Bebenhausen"]
[BlackTeam "SG Trier"]
[TimeControl "40/5400+30:1800+30"]

1. e4 {[%emt 0:00:00]} e6 {[%emt 0:00:00]} 2. d4 {[%emt 0:00:00]} d5 {[%emt 0:00:00]} 3. Nd2 {[%emt 0:00:00]} Nf6 {[%emt 0:00:00]} 4. e5 {[%emt 0:00:23]} Nfd7 {[%emt 0:00:00]} 5. Bd3 {[%emt 0:00:13]} c5 {[%emt 0:00:04]} 6. c3 {[%emt 0:00:06]} Nc6 {[%emt 0:00:03]} 7. Ne2 {[%emt 0:00:18]} cxd4 {[%emt 0:00:18]} 8. cxd4 {[%emt 0:00:18]} f6 {[%emt 0:00:06]} 9. exf6 {[%emt 0:00:29]} Nxf6 {[%emt 0:00:06]} 10. Nf3 {[%emt 0:00:27]} Bd6 {[%emt 0:00:20]} 11. O-O {[%emt 0:00:13]} O-O {[%emt 0:01:36]} 12. Bf4 {[%emt 0:00:52]} Ng4 {[%emt 0:08:13]} 13. Bxd6 {[%emt 0:15:47]} Qxd6 {[%emt 0:00:32]} 14. Ng3 {[%emt 0:00:49]} e5 {[%emt 0:03:18]} 15. dxe5 {[%emt 0:01:21]} Ncxe5 {[%emt 0:00:53]} 16. Nxe5 {[%emt 0:02:09]} Qxe5 {[%emt 0:01:50]} 17. Qb3 {[%emt 0:05:19]} Kh8 {[%emt 0:03:40]} 18. Qb4 {[%emt 0:04:47]} Be6 {[%emt 0:02:43]} 19. Rae1 {[%emt 0:03:50]} Qf6 {[%emt 0:04:04]} 20. Bb1 {[%emt 0:29:28]} Rae8 {[%emt 0:04:46]} 21. Qd2 {[%emt 0:05:38]} a6 {[%emt 0:13:56]} 22. h3 {[%emt 0:01:30]} Nh6 {[%emt 0:02:27]} 23. Qb4 {[%emt 0:02:52]} Bd7 {[%emt 0:03:02]} 24. Rxe8 {[%emt 0:05:21]} Bxe8 {[%emt 0:00:18]} 25. Bd3 {[%emt 0:00:59]} Bc6 {[%emt 0:00:09]} 26. Ne2 {[%emt 0:02:34]} Nf5 {[%emt 0:05:12]} 27. Bxf5 {[%emt 0:01:26]} Qxf5 {[%emt 0:00:03]} 28. Nd4 {[%emt 0:00:21]} Qf6 {[%emt 0:00:10]} 29. Nxc6 {[%emt 0:01:01]} bxc6 {[%emt 0:00:02]} 30. Qb6 {[%emt 0:01:09]} Rd8 {[%emt 0:05:03]} 31. Qxa6 {[%emt 0:08:58]} Qxb2 {[%emt 0:00:19]} 32. a4 {[%emt 0:03:43]} c5 {[%emt 0:02:06]} 33. Qa5 {[%emt 0:02:12]} Rc8 {[%emt 0:00:48]} 34. Rd1 {[%emt 0:01:41]} d4 {[%emt 0:04:32]} 35. Qa6 {[%emt 0:00:29]} Rf8 {[%emt 0:01:07]} 36. Rf1 {[%emt 0:00:28]} Qc3 {[%emt 0:01:07]} 37. Qd6 {[%emt 0:00:35]} Re8 {[%emt 0:02:23]} 38. Qd7 {[%emt 0:00:36]} Rf8 {[%emt 0:00:25]} 39. Qd6 {[%emt 0:00:15]} Re8 {[%emt 0:00:16] normal} 40. Qd7 Rf8 {normal} 1/2-1/2

[Event "DVM U20 2019"]
[Site "Braunschweig"]
[Date "2019.12.27"]
[Round "2"]
[White "Schamschurko, André"]
[Black "Tiedemann, Fin Niklas"]
[Result "1/2-1/2"]
[ECO "C54"]
[WhiteElo "1868"]
[BlackElo "1936"]
[Annotator "NA"]
[PlyCount "83"]
[EventDate "2019.12.27"]
[EventType "team-tourn"]
[EventRounds "7"]
[EventCountry "GER"]
[SourceTitle "playchess.com"]
[Source "ChessBase"]
[SourceQuality "1"]
[WhiteTeam "USV TU Dresden"]
[BlackTeam "Lübecker SV"]
[TimeControl "40/5400+30:1800+30"]

1. e4 {[%emt 0:00:00]} e5 {[%emt 0:00:00]} 2. Nf3 {[%emt 0:00:00]} Nc6 {[%emt 0:00:00]} 3. Bc4 {[%emt 0:00:00]} Bc5 {[%emt 0:00:00]} 4. c3 {[%emt 0:00:00]} Nf6 {[%emt 0:00:00]} 5. d3 {[%emt 0:00:00]} d6 {[%emt 0:00:35]} 6. Bb3 {[%emt 0:00:07]} O-O {[%emt 0:00:50]} 7. Bg5 {[%emt 0:00:06]} h6 {[%emt 0:00:32]} 8. Bh4 {[%emt 0:00:05]} Qe7 {[%emt 0:02:49]} 9. Nbd2 {[%emt 0:00:36]} a6 {[%emt 0:02:42]} 10. Nf1 {[%emt 0:01:45]} Be6 {[%emt 0:07:04]} 11. Bc2 {[%emt 0:01:41]} Rad8 {[%emt 0:04:20]} 12. Ne3 {[%emt 0:03:47]} g5 {[%emt 0:03:17]} 13. Bg3 {[%emt 0:00:52]} Ng4 {[%emt 0:04:23]} 14. Qe2 {[%emt 0:04:07]} Nxe3 {[%emt 0:05:44]} 15. fxe3 {[%emt 0:00:11]} Bg4 16. O-O-O {[%emt 0:04:16]} Kg7 {[%emt 0:02:51]} 17. h3 {[%emt 0:02:36]} Bh5 {[%emt 0:00:11]} 18. h4 {[%emt 0:00:25]} Bg4 {[%emt 0:06:41]} 19. Rdf1 f6 {[%emt 0:02:09]} 20. d4 {[%emt 0:06:17]} Bb6 21. Qd2 {[%emt 0:06:06]} Rh8 {[%emt 0:05:33]} 22. Be1 {[%emt 0:02:52]} Bc8 {[%emt 0:04:05]} 23. Ng1 {[%emt 0:05:54]} Qf7 {[%emt 0:03:06]} 24. Bb1 {[%emt 0:01:34]} Ne7 {[%emt 0:06:06]} 25. Ne2 {[%emt 0:02:22]} c6 {[%emt 0:00:50]} 26. Ng3 {[%emt 0:00:50]} Be6 {[%emt 0:01:40]} 27. Qd1 {[%emt 0:01:00]} Ng8 {[%emt 0:09:40]} 28. Qf3 {[%emt 0:05:18]} g4 {[%emt 0:01:09]} 29. Nf5+ {[%emt 0:01:22]} Bxf5 {[%emt 0:00:20]} 30. Qxf5 {[%emt 0:00:10]} h5 {[%emt 0:00:42]} 31. Bg3 {[%emt 0:06:31]} Ne7 {[%emt 0:02:42]} 32. Qf2 {[%emt 0:00:46]} Ng6 {[%emt 0:02:24]} 33. Qe2 {[%emt 0:02:05]} Qe7 {[%emt 0:03:00]} 34. Rf5 {[%emt 0:09:40]} Rdf8 {[%emt 0:02:52]} 35. Rd1 {[%emt 0:06:56]} Rd8 {[%emt 0:03:53]} 36. Bc2 {[%emt 0:06:20]} Rh6 {[%emt 0:04:23]} 37. Bb3 {[%emt 0:02:30]} Ba7 {[%emt 0:04:18]} 38. Qc4 {[%emt 0:04:21]} d5 {[%emt 0:04:17]} 39. exd5 {[%emt 0:05:15]} cxd5 {[%emt 0:00:09]} 40. Qd3 {[%emt 0:01:27]} e4 {[%emt 0:00:58]} 41. Qf1 {[%emt 0:38:04]} Qe6 {[%emt 0:30:41]} 42. Rf2 {[%emt 0:00:00] normal} 1/2-1/2

[Event "DVM U20 2019"]
[Site "Braunschweig"]
[Date "2019.12.27"]
[Round "2"]
[White "Ließ, Alexander"]
[Black "Döpper, Anna Bérénice"]
[Result "1/2-1/2"]
[ECO "D34"]
[WhiteElo "1852"]
[BlackElo "1855"]
[Annotator "NA"]
[PlyCount "55"]
[EventDate "2019.12.27"]
[EventType "team-tourn"]
[EventRounds "7"]
[EventCountry "GER"]
[SourceTitle "playchess.com"]
[Source "ChessBase"]
[SourceQuality "1"]
[WhiteTeam "SC Bavaria Regensburg"]
[BlackTeam "SF Essen-Katernberg"]
[TimeControl "40/5400+30:1800+30"]

1. d4 e6 {[%emt 0:00:00]} 2. c4 {[%emt 0:00:00]} d5 {[%emt 0:00:00]} 3. Nf3 c5 4. cxd5 {[%emt 0:00:53]} exd5 {[%emt 0:00:00]} 5. Nc3 {[%emt 0:01:14]} Nc6 {[%emt 0:00:00]} 6. g3 {[%emt 0:00:19]} Nf6 {[%emt 0:00:00]} 7. Bg2 {[%emt 0:01:09]} Be7 {[%emt 0:00:03]} 8. O-O {[%emt 0:01:44]} O-O {[%emt 0:00:07]} 9. b3 {[%emt 0:07:33]} b6 {[%emt 0:09:45]} 10. Bb2 {[%emt 0:03:59]} Bb7 {[%emt 0:00:58]} 11. Rc1 {[%emt 0:04:33]} Na5 {[%emt 0:04:26]} 12. dxc5 {[%emt 0:18:50]} bxc5 {[%emt 0:00:32]} 13. Na4 {[%emt 0:00:43]} c4 {[%emt 0:05:53]} 14. Ne5 {[%emt 0:16:25]} cxb3 {[%emt 0:12:48]} 15. axb3 {[%emt 0:00:08]} Rc8 {[%emt 0:07:58]} 16. Rxc8 {[%emt 0:09:36]} Bxc8 {[%emt 0:05:31]} 17. Bd4 {[%emt 0:02:49]} Qc7 {[%emt 0:06:56]} 18. Nd3 {[%emt 0:04:57]} Be6 {[%emt 0:05:23]} 19. Nf4 {[%emt 0:03:13]} Rb8 {[%emt 0:01:36]} 20. Bxf6 {[%emt 0:05:22]} Bxf6 {[%emt 0:00:20]} 21. Nxd5 {[%emt 0:01:09]} Qe5 {[%emt 0:01:10]} 22. Nc5 {[%emt 0:02:30]} Rb5 {[%emt 0:02:40]} 23. Nxf6+ {[%emt 0:01:33]} gxf6 {[%emt 0:02:32]} 24. b4 {[%emt 0:02:34]} Nc4 {[%emt 0:00:23]} 25. Qa4 {[%emt 0:02:43]} Rb6 {[%emt 0:02:14]} 26. Nd3 {[%emt 0:04:45]} Qxe2 {[%emt 0:02:06]} 27. Nf4 {[%emt 0:00:06]} Qe5 {[%emt 0:06:19]} 28. Qxa7 {[%emt 0:02:14] normal} 1/2-1/2

[Event "DVM U20 2019"]
[Site "Braunschweig"]
[Date "2019.12.27"]
[Round "2"]
[White "Düro, Liam"]
[Black "Freiherr von Hauff, Christopher"]
[Result "1/2-1/2"]
[ECO "A46"]
[WhiteElo "1841"]
[BlackElo "1868"]
[Annotator "NA"]
[PlyCount "170"]
[EventDate "2019.12.27"]
[EventType "team-tourn"]
[EventRounds "7"]
[EventCountry "GER"]
[SourceTitle "playchess.com"]
[Source "ChessBase"]
[SourceQuality "1"]
[WhiteTeam "SG Trier"]
[BlackTeam "SK Bebenhausen"]
[TimeControl "40/5400+30:1800+30"]

1. d4 {[%emt 0:00:00]} Nf6 {[%emt 0:00:00]} 2. Nf3 {[%emt 0:00:00]} c5 {[%emt 0:00:43]} 3. e3 {[%emt 0:00:00]} e6 {[%emt 0:02:34]} 4. c4 {[%emt 0:00:11]} d5 {[%emt 0:03:22]} 5. Nc3 {[%emt 0:00:11]} Nc6 {[%emt 0:02:08]} 6. a3 {[%emt 0:01:03]} Be7 {[%emt 0:08:10]} 7. dxc5 {[%emt 0:00:13]} Bxc5 {[%emt 0:02:10]} 8. b4 {[%emt 0:00:09]} Bb6 {[%emt 0:04:29]} 9. Bb2 {[%emt 0:01:09]} O-O {[%emt 0:02:18]} 10. c5 {[%emt 0:00:17]} Bc7 {[%emt 0:00:23]} 11. Bb5 {[%emt 0:01:47]} e5 {[%emt 0:05:53]} 12. O-O {[%emt 0:02:33]} e4 {[%emt 0:02:40]} 13. Bxc6 {[%emt 0:00:54]} bxc6 {[%emt 0:03:13]} 14. Nd2 {[%emt 0:11:06]} Bxh2+ {[%emt 0:04:18]} 15. Kxh2 {[%emt 0:04:21]} Ng4+ {[%emt 0:00:34]} 16. Kg3 {[%emt 0:09:04]} Qg5 {[%emt 0:01:39]} 17. Ncxe4 {[%emt 0:06:49]} dxe4 {[%emt 0:04:31]} 18. Nxe4 {[%emt 0:01:47]} Qg6 {[%emt 0:01:10]} 19. Qd4 {[%emt 0:02:42]} Nf6+ {[%emt 0:06:13]} 20. Kh2 {[%emt 0:01:48]} Qxe4 {[%emt 0:00:46]} 21. Qd6 {[%emt 0:01:12]} Ba6 {[%emt 0:09:19]} 22. Rfd1 {[%emt 0:01:04]} Ng4+ {[%emt 0:04:24]} 23. Kg3 {[%emt 0:02:08]} Nh6 {[%emt 0:01:00]} 24. Kh2 {[%emt 0:01:37]} Qg6 {[%emt 0:00:18]} 25. Qd7 {[%emt 0:05:53]} Bc8 {[%emt 0:04:51]} 26. Qc7 {[%emt 0:00:39]} Bg4 {[%emt 0:01:37]} 27. Rd6 {[%emt 0:02:55]} Qh5+ {[%emt 0:01:26]} 28. Kg1 {[%emt 0:00:35]} Rfc8 {[%emt 0:02:47]} 29. Qb7 {[%emt 0:01:21]} Be6 {[%emt 0:01:27]} 30. Rxe6 {[%emt 0:00:32]} Rcb8 {[%emt 0:04:57]} 31. Qc7 {[%emt 0:01:43]} a5 {[%emt 0:06:40]} 32. Qe5 {[%emt 0:05:31]} Qxe5 {[%emt 0:00:33]} 33. Rxe5 {[%emt 0:00:11]} Kf8 {[%emt 0:01:39]} 34. Re4 {[%emt 0:01:41]} f5 {[%emt 0:01:26]} 35. Rd4 {[%emt 0:01:42]} Ng4 {[%emt 0:01:15]} 36. Rad1 {[%emt 0:01:06]} axb4 {[%emt 0:00:44]} 37. axb4 {[%emt 0:01:04]} Ra2 {[%emt 0:00:38]} 38. Rd8+ {[%emt 0:01:11]} Rxd8 {[%emt 0:00:32]} 39. Rxd8+ {[%emt 0:00:07]} Ke7 {[%emt 0:00:04]} 40. Rd2 {[%emt 0:00:17]} Ke8 {[%emt 0:02:50]} 41. Kf1 {[%emt 0:30:58]} g6 {[%emt 0:31:25]} 42. Ke2 {[%emt 0:01:02]} Ra4 {[%emt 0:00:31]} 43. f3 {[%emt 0:01:18]} Nh6 {[%emt 0:00:13]} 44. Bc3 {[%emt 0:00:24]} Ra3 {[%emt 0:01:00]} 45. Kd3 {[%emt 0:01:11]} Nf7 {[%emt 0:00:12]} 46. Kc4 {[%emt 0:00:32]} Ke7 {[%emt 0:00:25]} 47. Rd3 {[%emt 0:02:29]} Ra2 {[%emt 0:00:12]} 48. Rd2 {[%emt 0:00:43]} Ra3 {[%emt 0:00:13]} 49. Rb2 {[%emt 0:02:13]} Ra4 {[%emt 0:00:37]} 50. Kb3 {[%emt 0:00:40]} Ra7 {[%emt 0:00:38]} 51. Rd2 {[%emt 0:00:17]} Rb7 {[%emt 0:00:54]} 52. Rd1 {[%emt 0:00:50]} Ke6 {[%emt 0:02:34]} 53. Ra1 {[%emt 0:00:37]} Rd7 {[%emt 0:01:22]} 54. Ra6 {[%emt 0:01:18]} Kd5 {[%emt 0:00:00]} 55. Bd4 {[%emt 0:00:00]} f4 {[%emt 0:00:00]} 56. Kc3 {[%emt 0:00:00]} fxe3 {[%emt 0:00:00]} 57. Bxe3 {[%emt 0:00:00]} Re7 {[%emt 0:00:00]} 58. Bd4 {[%emt 0:00:00]} Nd8 {[%emt 0:00:00]} 59. b5 {[%emt 0:00:00]} Ne6 {[%emt 0:00:00]} 60. Bf2 {[%emt 0:00:00]} Nc7 {[%emt 0:00:00]} 61. Ra2 {[%emt 0:00:00]} Nxb5+ {[%emt 0:00:00]} 62. Kb4 {[%emt 0:00:00]} Rb7 {[%emt 0:00:00]} 63. Rd2+ {[%emt 0:00:00]} Ke6 {[%emt 0:00:00]} 64. Ka5 {[%emt 0:00:00]} Rd7 {[%emt 0:00:00]} 65. Re2+ {[%emt 0:00:00]} Kd5 {[%emt 0:00:00]} 66. Kb6 {[%emt 0:00:00]} Na3 {[%emt 0:00:00]} 67. Rd2+ {[%emt 0:00:00]} Ke6 {[%emt 0:00:00]} 68. Rd6+ {[%emt 0:00:00]} Rxd6 {[%emt 0:00:00]} 69. cxd6 {[%emt 0:00:00]} Nc4+ {[%emt 0:00:00]} 70. Kxc6 {[%emt 0:00:00]} Nxd6 {[%emt 0:00:00]} 71. Kc7 {[%emt 0:00:00]} Nf7 {[%emt 0:00:00]} 72. Be3 {[%emt 0:00:00]} Ke7 {[%emt 0:00:00]} 73. Kc6 {[%emt 0:00:00]} Ke6 {[%emt 0:03:28]} 74. Kc5 {[%emt 0:00:00]} Ne5 {[%emt 0:00:13]} 75. Kd4 {[%emt 0:00:00]} Kf5 {[%emt 0:00:30]} 76. Bc1 {[%emt 0:00:47]} h5 {[%emt 0:00:27]} 77. Ke3 {[%emt 0:00:15]} Nc6 {[%emt 0:00:50]} 78. Kf2 {[%emt 0:00:52]} Nb4 {[%emt 0:00:22]} 79. Bd2 {[%emt 0:02:34]} Nd5 {[%emt 0:00:42]} 80. Kg3 {[%emt 0:00:47]} g5 {[%emt 0:01:29]} 81. Kf2 {[%emt 0:01:28]} Nf6 {[%emt 0:01:21]} 82. Bc3 {[%emt 0:02:38]} Nd5 {[%emt 0:00:36]} 83. Bd2 Nf6 84. g4+ Nxg4+ 85. fxg4+ Kxg4 {normal} 1/2-1/2

[Event "DVM U20 2019"]
[Site "Braunschweig"]
[Date "2019.12.27"]
[Round "2"]
[White "Genov, Valentin"]
[Black "von Angern, Cedric"]
[Result "0-1"]
[ECO "D91"]
[WhiteElo "1829"]
[BlackElo "1867"]
[Annotator "NA"]
[PlyCount "55"]
[EventDate "2019.12.27"]
[EventType "team-tourn"]
[EventRounds "7"]
[EventCountry "GER"]
[SourceTitle "playchess.com"]
[Source "ChessBase"]
[SourceQuality "1"]
[WhiteTeam "Hamburger SK"]
[BlackTeam "SG Aufbau Elbe Magdeburg"]
[TimeControl "40/5400+30:1800+30"]

1. d4 {[%emt 0:00:00]} Nf6 {[%emt 0:00:00]} 2. c4 {[%emt 0:00:00]} g6 {[%emt 0:00:00]} 3. Nc3 {[%emt 0:00:00]} d5 {[%emt 0:00:00]} 4. Nf3 {[%emt 0:00:22]} Bg7 {[%emt 0:00:15]} 5. Bg5 {[%emt 0:02:38]} Ne4 {[%emt 0:08:12]} 6. cxd5 {[%emt 0:00:09]} Nxc3 {[%emt 0:01:22]} 7. bxc3 {[%emt 0:00:21]} Qxd5 {[%emt 0:00:21]} 8. Bf4 {[%emt 0:20:49]} c5 {[%emt 0:07:16]} 9. e3 {[%emt 0:00:32]} O-O {[%emt 0:01:53]} 10. Be2 {[%emt 0:09:10]} cxd4 {[%emt 0:08:18]} 11. cxd4 {[%emt 0:02:07]} Be6 {[%emt 0:05:29]} 12. O-O {[%emt 0:02:23]} Nc6 {[%emt 0:03:12]} 13. Qd2 {[%emt 0:06:05]} Rfc8 {[%emt 0:03:12]} 14. Rfb1 {[%emt 0:16:58]} Qd7 {[%emt 0:05:05]} 15. Ng5 {[%emt 0:08:57]} Bf5 {[%emt 0:06:09]} 16. Bc4 {[%emt 0:05:51]} Nd8 {[%emt 0:04:57]} 17. Rc1 {[%emt 0:03:26]} e5 {[%emt 0:03:36]} 18. e4 {[%emt 0:06:15]} exf4 {[%emt 0:03:35]} 19. exf5 {[%emt 0:00:18]} Qxf5 {[%emt 0:03:39]} 20. Nf3 {[%emt 0:02:00]} Nc6 {[%emt 0:08:27]} 21. Rab1 {[%emt 0:03:48]} Rab8 {[%emt 0:08:53]} 22. Rb5 {[%emt 0:02:53]} Qf6 {[%emt 0:04:16]} 23. Ne5 {[%emt 0:02:35]} Nxe5 {[%emt 0:02:02]} 24. dxe5 {[%emt 0:00:12]} Qe7 {[%emt 0:03:34]} 25. Qxf4 {[%emt 0:00:42]} Rc7 {[%emt 0:02:28] normal} 26. Rd1 Rbc8 {[%emt 0:03:22]} 27. Bb3 {[%emt 0:00:11] normal} Rc5 {[%emt 0:01:12]} 28. Rxc5 {[%emt 0:00:06] normal} 0-1

[Event "DVM U20 2019"]
[Site "Braunschweig"]
[Date "2019.12.27"]
[Round "2"]
[White "Hamkar, Mehran"]
[Black "Kracht, Raphael"]
[Result "1/2-1/2"]
[ECO "C55"]
[WhiteElo "1814"]
[BlackElo "2031"]
[Annotator "NA"]
[PlyCount "128"]
[EventDate "2019.12.27"]
[EventType "team-tourn"]
[EventRounds "7"]
[EventCountry "GER"]
[SourceTitle "playchess.com"]
[Source "ChessBase"]
[SourceQuality "1"]
[WhiteTeam "SF Augsburg"]
[BlackTeam "SF Brackel"]
[TimeControl "40/5400+30:1800+30"]

1. e4 {[%emt 0:00:00]} e5 {[%emt 0:00:00]} 2. Nf3 {[%emt 0:00:00]} Nc6 {[%emt 0:00:00]} 3. d4 {[%emt 0:00:00]} exd4 {[%emt 0:00:00]} 4. Bc4 {[%emt 0:00:00]} Nf6 {[%emt 0:00:00]} 5. e5 {[%emt 0:00:09]} d5 {[%emt 0:00:00]} 6. Bb5 {[%emt 0:00:09]} Ne4 {[%emt 0:00:00]} 7. Nxd4 {[%emt 0:00:09]} Bc5 {[%emt 0:00:02]} 8. Be3 {[%emt 0:00:15]} O-O {[%emt 0:00:41]} 9. Nxc6 {[%emt 0:00:25]} bxc6 {[%emt 0:00:06]} 10. Bxc5 {[%emt 0:00:23]} Nxc5 {[%emt 0:00:06]} 11. Bxc6 {[%emt 0:00:22]} Rb8 {[%emt 0:00:18]} 12. Qxd5 {[%emt 0:11:41]} Qe7 {[%emt 0:00:39]} 13. O-O {[%emt 0:04:34]} Rd8 {[%emt 0:14:24]} 14. Qf3 {[%emt 0:01:12]} Ne6 {[%emt 0:04:47]} 15. Qc3 {[%emt 0:26:31]} Nd4 {[%emt 0:17:11]} 16. Re1 {[%emt 0:04:33]} Rb6 {[%emt 0:16:26]} 17. Be4 {[%emt 0:07:36]} Ba6 {[%emt 0:03:56]} 18. Qh3 {[%emt 0:19:59]} Ne2+ {[%emt 0:04:29]} 19. Kh1 {[%emt 0:00:34]} Rh6 {[%emt 0:06:07]} 20. Qe3 {[%emt 0:03:36]} Kh8 {[%emt 0:14:36]} 21. Bd3 {[%emt 0:11:57]} Qh4 {[%emt 0:08:36]} 22. h3 {[%emt 0:00:20]} Bxd3 {[%emt 0:01:42]} 23. cxd3 {[%emt 0:00:06]} Nd4 {[%emt 0:00:10]} 24. Na3 {[%emt 0:00:23]} Nf5 {[%emt 0:01:25]} 25. Qf3 {[%emt 0:00:14]} Qg5 {[%emt 0:02:26]} 26. Rad1 {[%emt 0:01:19]} Nh4 {[%emt 0:00:36]} 27. Qg3 {[%emt 0:01:05]} Qe7 {[%emt 0:00:17]} 28. Re4 {[%emt 0:00:38]} Nf5 {[%emt 0:01:57]} 29. Qf3 {[%emt 0:00:23]} Nd4 {[%emt 0:00:08]} 30. Qg4 {[%emt 0:00:58]} Rg6 {[%emt 0:00:29]} 31. Qh4 {[%emt 0:00:41]} Qd7 {[%emt 0:00:51]} 32. Nc4 {[%emt 0:00:34]} c5 {[%emt 0:01:08]} 33. e6 {[%emt 0:01:19]} Nxe6 {[%emt 0:01:03]} 34. Ne5 {[%emt 0:00:14]} Rh6 {[%emt 0:01:31]} 35. Nxd7 {[%emt 0:01:05]} Rxh4 {[%emt 0:00:04]} 36. Rxh4 {[%emt 0:00:12]} Rxd7 {[%emt 0:00:03]} 37. b4 {[%emt 0:02:13]} g5 {[%emt 0:00:14]} 38. Rc4 {[%emt 0:00:16]} cxb4 39. Rxb4 {[%emt 0:00:13]} Kg7 {[%emt 0:00:16]} 40. h4 {[%emt 0:02:36]} h6 {[%emt 0:00:24]} 41. hxg5 {[%emt 0:04:04]} hxg5 {[%emt 0:00:07]} 42. d4 {[%emt 0:02:54]} Kf6 {[%emt 0:00:34]} 43. g3 {[%emt 0:01:12]} Ke7 {[%emt 0:02:39]} 44. Kg2 {[%emt 0:11:16]} Kd6 {[%emt 0:02:54]} 45. Kf3 {[%emt 0:01:14]} f5 {[%emt 0:01:14]} 46. Ke3 {[%emt 0:04:43]} Nc7 {[%emt 0:07:26]} 47. Kd3 {[%emt 0:00:52]} Nd5 {[%emt 0:01:09]} 48. Rc4 {[%emt 0:00:54]} Rb7 {[%emt 0:01:05]} 49. Ra4 {[%emt 0:02:55]} Rc7 {[%emt 0:02:07]} 50. Rc4 {[%emt 0:01:08]} Rb7 {[%emt 0:00:05]} 51. Kd2 {[%emt 0:02:57]} Rb2+ {[%emt 0:00:56]} 52. Rc2 {[%emt 0:00:08]} Rb4 {[%emt 0:01:01]} 53. Ke2 {[%emt 0:00:11]} Ra4 {[%emt 0:01:07]} 54. Rdd2 {[%emt 0:00:29]} Ra3 {[%emt 0:01:31]} 55. Rd3 {[%emt 0:01:27]} Ra4 {[%emt 0:00:43]} 56. Rdd2 {[%emt 0:00:07]} Ra3 {[%emt 0:00:10]} 57. Ke1 {[%emt 0:00:19]} Nb4 {[%emt 0:04:20]} 58. Rc4 {[%emt 0:00:37]} Nxa2 {[%emt 0:02:51]} 59. Rc5 {[%emt 0:01:02]} Nc3 {[%emt 0:00:25]} 60. f3 {[%emt 0:00:22]} Nd5 {[%emt 0:01:24]} 61. Kf2 {[%emt 0:00:14]} a5 {[%emt 0:04:37]} 62. g4 {[%emt 0:01:02]} fxg4 {[%emt 0:00:19]} 63. fxg4 {[%emt 0:00:05] normal} Nf6 {[%emt 0:01:03]} 64. Re2 {[%emt 0:00:41]} Nxg4+ {[%emt 0:00:05] normal} 1/2-1/2

[Event "DVM U20 2019"]
[Site "Braunschweig"]
[Date "2019.12.27"]
[Round "2"]
[White "Gallas, Noel"]
[Black "Gabler, Eric"]
[Result "1/2-1/2"]
[ECO "B22"]
[WhiteElo "1785"]
[BlackElo "2064"]
[Annotator "NA"]
[PlyCount "60"]
[EventDate "2019.12.27"]
[EventType "team-tourn"]
[EventRounds "7"]
[EventCountry "GER"]
[SourceTitle "playchess.com"]
[Source "ChessBase"]
[SourceQuality "1"]
[WhiteTeam "SF Essen-Katernberg"]
[BlackTeam "SC Bavaria Regensburg"]
[TimeControl "40/5400+30:1800+30"]

1. e4 {[%emt 0:00:00]} c5 {[%emt 0:00:00]} 2. c3 {[%emt 0:00:00]} d5 {[%emt 0:00:00]} 3. exd5 {[%emt 0:00:00]} Qxd5 {[%emt 0:00:01]} 4. d4 {[%emt 0:00:01]} Nc6 {[%emt 0:00:43]} 5. Nf3 {[%emt 0:00:17]} Bg4 {[%emt 0:01:32]} 6. Be2 {[%emt 0:00:15]} Nf6 {[%emt 0:02:50]} 7. Be3 {[%emt 0:01:16]} cxd4 {[%emt 0:11:49]} 8. cxd4 {[%emt 0:00:29]} e6 {[%emt 0:00:34]} 9. O-O {[%emt 0:00:30]} Be7 {[%emt 0:02:14]} 10. Nc3 {[%emt 0:01:38]} Qd8 {[%emt 0:11:04]} 11. Qb3 {[%emt 0:02:13]} Qb6 {[%emt 0:06:03]} 12. Qxb6 {[%emt 0:07:44]} axb6 {[%emt 0:00:06]} 13. Rfd1 {[%emt 0:00:53]} Nb4 {[%emt 0:04:46]} 14. h3 {[%emt 0:13:56]} Bf5 {[%emt 0:03:10]} 15. Bb5+ {[%emt 0:04:48]} Kf8 {[%emt 0:00:33]} 16. Rac1 {[%emt 0:04:01]} Nfd5 {[%emt 0:05:44]} 17. Nxd5 {[%emt 0:03:28]} Nxd5 {[%emt 0:00:14]} 18. Bc4 {[%emt 0:00:41]} Bd6 {[%emt 0:01:00]} 19. Bxd5 {[%emt 0:02:11]} exd5 {[%emt 0:02:31]} 20. a3 {[%emt 0:00:43]} f6 {[%emt 0:02:45]} 21. Rc3 {[%emt 0:01:16]} Ke7 {[%emt 0:03:54]} 22. Rdc1 {[%emt 0:01:45]} Rhc8 {[%emt 0:09:51]} 23. Nd2 {[%emt 0:05:34]} Rxc3 {[%emt 0:01:12]} 24. Rxc3 {[%emt 0:00:16]} Rc8 {[%emt 0:00:21]} 25. Rxc8 {[%emt 0:00:33]} Bxc8 {[%emt 0:00:06]} 26. Nb1 {[%emt 0:00:32]} Bd7 {[%emt 0:01:18]} 27. Nc3 {[%emt 0:00:17]} Bc6 {[%emt 0:01:48]} 28. Kf1 {[%emt 0:01:14]} Ke6 {[%emt 0:03:37]} 29. Ke2 {[%emt 0:00:52]} Be8 {[%emt 0:00:50]} 30. f4 {[%emt 0:03:37]} Bc7 {[%emt 0:05:27] normal} 1/2-1/2

[Event "DVM U20 2019"]
[Site "Braunschweig"]
[Date "2019.12.27"]
[Round "2"]
[White "Celik, Cem"]
[Black "Brüll, Elias"]
[Result "0-1"]
[ECO "B21"]
[WhiteElo "1767"]
[BlackElo "1797"]
[Annotator "NA"]
[PlyCount "32"]
[EventDate "2019.12.27"]
[EventType "team-tourn"]
[EventRounds "7"]
[EventCountry "GER"]
[SourceTitle "playchess.com"]
[Source "ChessBase"]
[SourceQuality "1"]
[WhiteTeam "SF Essen-Katernberg"]
[BlackTeam "SC Bavaria Regensburg"]
[TimeControl "40/5400+30:1800+30"]

1. e4 {[%emt 0:00:00]} c5 {[%emt 0:00:00]} 2. d4 {[%emt 0:00:00]} cxd4 {[%emt 0:00:00]} 3. c3 {[%emt 0:00:00]} dxc3 {[%emt 0:00:00]} 4. Nxc3 {[%emt 0:00:00]} d6 {[%emt 0:00:00]} 5. Bc4 {[%emt 0:00:00]} e6 {[%emt 0:00:08]} 6. Nf3 {[%emt 0:01:44]} Nc6 {[%emt 0:00:09]} 7. Bf4 {[%emt 0:01:01]} Be7 {[%emt 0:02:17]} 8. Qe2 {[%emt 0:00:35]} Nf6 {[%emt 0:01:28]} 9. h3 {[%emt 0:00:40]} e5 {[%emt 0:01:31]} 10. Bg5 {[%emt 0:02:27]} Be6 {[%emt 0:02:44]} 11. O-O {[%emt 0:05:03]} a6 {[%emt 0:02:27]} 12. Nd5 {[%emt 0:04:25]} Bxd5 {[%emt 0:11:31]} 13. exd5 {[%emt 0:05:06]} Nxd5 {[%emt 0:06:58]} 14. Bxe7 {[%emt 0:01:05]} Ndxe7 {[%emt 0:11:14]} 15. Ng5 {[%emt 0:01:39]} d5 {[%emt 0:03:09]} 16. Qf3 {[%emt 0:04:02]} O-O {[%emt 0:04:42] normal} 0-1